bitfinex/quotes_BTCUSD_20250129
["timestamp","ask_amount","ask_price","bid_price","bid_amount"]
[1738186562456,0.39679541,104350.0,104340.0,0.00044273]
[1738186562976,0.49415217,104350.0,104340.0,0.00044273]
[1738186563190,0.39779541,104350.0,104340.0,0.00044273]
[1738186563598,0.39679541,104350.0,104340.0,0.00044273]
[1738186564496,0.52703857,104350.0,104340.0,0.00444273]
[1738186564710,0.52703857,104350.0,104340.0,0.00044273]
[1738186564890,0.77439533,104350.0,104340.0,0.00044273]
[1738186565138,0.91974374,104350.0,104340.0,7.3e-07]
[1738186565354,0.89974374,104350.0,104340.0,7.3e-07]
[1738186565790,0.90917321,104350.0,104340.0,7.3e-07]
[1738186566518,0.90617321,104350.0,104340.0,7.3e-07]
[1738186566724,0.90917321,104350.0,104340.0,7.3e-07]
[1738186566931,0.66247639,104350.0,104340.0,7.3e-07]
[1738186567144,0.446674,104330.0,104320.0,0.00029862]
[1738186567376,0.62922346,104330.0,104320.0,1.5e-07]
[1738186568441,0.87592028,104330.0,104320.0,1.5e-07]
[1738186568645,1.0091714,104330.0,104320.0,0.00100015]
[1738186568853,1.0181714,104330.0,104320.0,0.00200015]
[1738186569706,0.75739113,104330.0,104320.0,0.00200015]
[1738186569921,0.74739113,104330.0,104320.0,0.00200015]
[1738186570143,0.75739113,104330.0,104320.0,0.00200015]
[1738186570398,0.74739113,104330.0,104320.0,0.00200015]
[1738186570600,0.75739113,104330.0,104320.0,0.00200015]
[1738186570815,0.47714797,104330.0,104320.0,0.00200015]
[1738186571057,0.50714797,104330.0,104320.0,0.00200015]
[1738186571273,0.60450473,104330.0,104320.0,0.00200015]
[1738186571496,0.76421187,104330.0,104320.0,0.00200015]
[1738186571740,0.85445503,104330.0,104320.0,0.00200015]
[1738186571977,0.85445503,104330.0,104320.0,0.00229877]
[1738186573620,0.75709827,104330.0,104320.0,0.00229877]
[1738186574893,0.76709827,104330.0,104320.0,0.00229877]
[1738186575335,0.75709827,104330.0,104320.0,0.00229877]
[1738186575546,0.96178754,104330.0,104320.0,0.00229877]
[1738186575959,0.77631357,104330.0,104320.0,0.00229877]
[1738186576164,0.87367033,104330.0,104320.0,0.00229877]
[1738186576983,0.88001047,104330.0,104320.0,0.00229877]
[1738186578985,0.78265371,104330.0,104320.0,0.00229877]
[1738186579887,0.96812768,104330.0,104320.0,0.00229877]
[1738186580104,0.96812768,104330.0,104320.0,1e-08]
[1738186580310,0.2628,104310.0,104300.0,6.2e-07]
[1738186580524,0.143843,104280.0,104270.0,0.00029841]
[1738186580739,0.32655311,104280.0,104270.0,0.00029841]
[1738186580952,0.3255953,104280.0,104270.0,0.00029841]
[1738186581196,0.42295206,104280.0,104270.0,0.00029841]
[1738186581409,0.4029953,104280.0,104270.0,0.00029841]
[1738186581823,0.4039953,104280.0,104270.0,0.00639047]
[1738186582027,0.5539953,104280.0,104270.0,0.00639047]
[1738186582242,0.91891243,104280.0,104270.0,4.7e-07]
[1738186582465,0.90991243,104280.0,104270.0,4.7e-07]
[1738186582695,0.90991243,104280.0,104260.0,8.3e-07]
[1738186582696,0.41382708,104270.0,104260.0,8.3e-07]
[1738186582907,0.69654421,104270.0,104260.0,9.295e-05]
[1738186583118,0.65701413,104270.0,104260.0,9.295e-05]
[1738186584981,0.66601413,104270.0,104260.0,0.00109295]
[1738186585190,0.67501413,104270.0,104260.0,0.00109295]
[1738186585413,0.77237089,104270.0,104260.0,0.00109295]
[1738186585621,0.76337089,104270.0,104260.0,9.295e-05]
[1738186585933,0.39577097,104270.0,104260.0,9.295e-05]
[1738186586137,0.33837097,104270.0,104260.0,9.295e-05]
[1738186586361,0.46837097,104270.0,104260.0,9.295e-05]
[1738186586800,0.48837097,104270.0,104260.0,9.295e-05]
[1738186587168,0.49786087,104270.0,104260.0,9.295e-05]
[1738186587579,0.60421763,104270.0,104260.0,9.295e-05]
[1738186587791,0.48886087,104270.0,104260.0,9.295e-05]
[1738186587995,0.50686087,104270.0,104260.0,9.295e-05]
[1738186588196,0.48686087,104270.0,104260.0,9.295e-05]
[1738186588399,0.47786087,104270.0,104260.0,9.295e-05]
[1738186588840,0.48686087,104270.0,104260.0,9.295e-05]
[1738186589246,0.60421763,104270.0,104260.0,9.295e-05]
[1738186589454,0.48686087,104270.0,104260.0,9.295e-05]
[1738186590706,0.42511472,104270.0,104260.0,9.295e-05]
[1738186592832,0.1513869,104270.0,104260.0,9.295e-05]
[1738186592834,0.141897,104270.0,104260.0,9.295e-05]
[1738186593055,0.26658263,104270.0,104260.0,9.295e-05]
[1738186593264,0.26562482,104270.0,104260.0,9.295e-05]
[1738186593479,0.2698957,104270.0,104260.0,9.295e-05]
[1738186594923,0.36725246,104270.0,104260.0,9.295e-05]
[1738186595162,0.51725246,104270.0,104260.0,9.295e-05]
[1738186595318,0.53725246,104270.0,104260.0,9.295e-05]
[1738186595530,0.71489562,104270.0,104260.0,9.295e-05]
[1738186596143,0.71519445,104270.0,104260.0,9.295e-05]
[1738186596640,0.89509258,104270.0,104260.0,9.295e-05]
[1738186598696,0.336898,104240.0,104230.0,0.00029799]
[1738186598895,0.74211598,104240.0,104230.0,0.00044211]
[1738186599111,0.74677158,104240.0,104230.0,0.00044211]
[1738186600785,0.65452458,104240.0,104230.0,0.00044211]
[1738186601195,0.65552458,104240.0,104230.0,0.00044211]
[1738186601408,0.67992458,104240.0,104230.0,0.00044211]
[1738186601620,0.68892458,104240.0,104230.0,0.00144211]
[1738186601845,0.69792458,104240.0,104230.0,0.00144211]
[1738186601977,0.79528134,104240.0,104230.0,0.00144211]
[1738186602213,0.81528134,104240.0,104230.0,0.00144211]
[1738186602396,0.79528134,104240.0,104230.0,0.00144211]
[1738186604131,0.80503727,104240.0,104230.0,0.00144211]
[1738186604334,0.70768051,104240.0,104230.0,0.00144211]
[1738186604534,0.72768051,104240.0,104230.0,0.00144211]
[1738186604743,0.70768051,104240.0,104230.0,0.00144211]
[1738186605160,0.72768051,104240.0,104230.0,0.00144211]
[1738186605400,0.70768051,104240.0,104230.0,0.00144211]
[1738186605633,0.72656141,104240.0,104230.0,0.00144211]
[1738186605850,0.33891825,104240.0,104230.0,0.00144211]
[1738186606081,0.30003735,104240.0,104230.0,0.00144211]
[1738186606551,0.45003735,104240.0,104230.0,0.00144211]
[1738186608607,0.17630953,104240.0,104230.0,0.09868527]
[1738186608868,0.1665536,104240.0,104230.0,0.24259727]
[1738186609024,0.1665536,104240.0,104230.0,0.09868527]
[1738186609209,0.29123923,104240.0,104230.0,0.00144211]
[1738186609448,0.44028142,104240.0,104230.0,0.00144211]
[1738186609646,0.1665536,104240.0,104230.0,0.09868527]
[1738186609852,0.1575536,104240.0,104230.0,0.09768527]
[1738186610092,0.1665536,104240.0,104230.0,0.09868527]
[1738186610637,0.1575536,104240.0,104230.0,0.09868527]
[1738186610842,0.1665536,104240.0,104230.0,0.09868527]
[1738186611543,0.1665536,104240.0,104230.0,0.24259727]
[1738186611750,0.1665536,104240.0,104230.0,0.09868527]
[1738186616794,0.0226556,104240.0,104230.0,0.24259727]
[1738186616796,0.0226556,104240.0,104230.0,0.32585666]
[1738186617074,0.0226556,104240.0,104230.0,0.32489727]
[1738186617293,0.0226556,104240.0,104230.0,1.82489727]
[1738186617535,0.0226556,104240.0,104230.0,0.17998527]
[1738186617536,0.1575536,104240.0,104230.0,0.17998527]
[1738186617769,0.1485536,104240.0,104230.0,0.17998527]
[1738186618222,0.1495536,104240.0,104230.0,0.17998527]
[1738186618461,0.1495536,104240.0,104230.0,0.32389727]
[1738186618709,0.0056556,104240.0,104230.0,0.32389727]
[1738186619245,0.1495536,104240.0,104230.0,0.32389727]
[1738186619472,0.1495536,104240.0,104230.0,0.17998527]
[1738186619912,0.1495536,104240.0,104230.0,0.09768527]
[1738186620884,0.1495536,104240.0,104230.0,0.24159727]
[1738186621127,0.1495536,104240.0,104230.0,0.09768527]
[1738186621368,0.27328142,104240.0,104230.0,0.00044211]
[1738186621572,0.1495536,104240.0,104230.0,0.00044211]
[1738186621750,0.15051141,104240.0,104230.0,0.00044211]
[1738186621982,0.1495536,104240.0,104230.0,0.00044211]
[1738186622198,0.1495536,104240.0,104230.0,0.09768527]
[1738186622420,0.1485536,104240.0,104230.0,0.24159727]
[1738186622630,0.1485536,104240.0,104230.0,0.32269727]
[1738186622836,0.1615536,104240.0,104230.0,0.32269727]
[1738186623250,0.1575536,104240.0,104230.0,0.32269727]
[1738186623434,0.1575536,104240.0,104230.0,0.32369727]
[1738186623668,0.1625536,104240.0,104230.0,0.17978527]
[1738186623875,0.28723923,104240.0,104230.0,0.00144211]
[1738186624077,0.28628142,104240.0,104230.0,0.00144211]
[1738186624991,0.1625536,104240.0,104230.0,0.00144211]
[1738186625754,0.16351141,104240.0,104230.0,0.00144211]
[1738186626117,0.38459599,104240.0,104230.0,0.00144211]
[1738186626320,0.38363818,104240.0,104230.0,0.00144211]
[1738186626874,0.1625536,104240.0,104230.0,0.00144211]
[1738186627087,0.16351141,104240.0,104230.0,0.00144211]
[1738186627514,0.28723923,104240.0,104230.0,0.00144211]
[1738186627724,0.28628142,104240.0,104230.0,0.00144211]
[1738186628170,0.1625536,104240.0,104230.0,0.00144211]
[1738186628397,0.0186556,104240.0,104230.0,0.24259727]
[1738186628605,0.0186556,104240.0,104230.0,0.32529727]
[1738186629031,0.0186556,104240.0,104230.0,1.82529727]
[1738186629441,0.1625536,104240.0,104230.0,1.82529727]
[1738186630060,0.0186556,104240.0,104230.0,1.82529727]
[1738186632175,0.1625536,104240.0,104230.0,1.59868527]
[1738186632375,0.28723923,104240.0,104230.0,0.09868527]
[1738186632696,0.28628142,104240.0,104230.0,0.00144211]
[1738186632863,0.3040116,104240.0,104230.0,0.00144211]
[1738186633066,0.28628142,104240.0,104230.0,0.00144211]
[1738186633293,0.1625536,104240.0,104230.0,0.00144211]
[1738186633494,0.16351141,104240.0,104230.0,0.00144211]
[1738186633696,0.0186556,104240.0,104230.0,0.36632509]
[1738186633899,0.014,104240.0,104230.0,0.44412509]
[1738186634095,0.014,104240.0,104230.0,0.32039727]
[1738186634321,0.014,104240.0,104230.0,1.82039727]
[1738186635936,0.157898,104240.0,104230.0,1.82039727]
[1738186636129,0.014,104240.0,104230.0,1.82039727]
[1738186636545,0.157898,104240.0,104230.0,1.82039727]
[1738186636745,0.014,104240.0,104230.0,1.82039727]
[1738186637494,0.014,104240.0,104230.0,2.09412509]
[1738186637695,0.014,104240.0,104230.0,1.97039727]
[1738186638364,0.014,104240.0,104230.0,1.82039727]
[1738186639846,0.014,104240.0,104230.0,2.09412509]
[1738186640050,0.014,104240.0,104230.0,2.17382478]
[1738186640256,0.014,104240.0,104230.0,0.70682478]
[1738186640468,0.00029883,104260.0,104250.0,0.420284]
[1738186640637,0.00029883,104260.0,104250.0,0.81788249]
[1738186640871,0.00029883,104260.0,104250.0,2.31788249]
[1738186641359,0.00029883,104260.0,104250.0,2.19415467]
[1738186642479,0.00029883,104260.0,104250.0,2.32788249]
[1738186642710,0.84802165,104310.0,104260.0,0.023]
[1738186642936,0.143829,104290.0,104280.0,0.09724316]
[1738186643154,0.45931782,104300.0,104280.0,0.24108616]
[1738186643581,0.45931782,104300.0,104290.0,0.143829]
[1738186643582,0.14803747,104300.0,104290.0,0.143829]
[1738186643854,0.14803747,104300.0,104290.0,0.24107216]
[1738186644273,0.00421147,104300.0,104290.0,0.24121628]
[1738186644691,0.14802647,104300.0,104290.0,0.24121628]
[1738186644897,0.15702647,104300.0,104290.0,0.24221628]
[1738186645847,0.16602647,104300.0,104290.0,0.24321628]
[1738186646098,0.16616877,104300.0,104290.0,0.24321628]
[1738186647620,0.16616877,104300.0,104290.0,0.09938728]
[1738186648747,0.02235377,104300.0,104290.0,0.24321628]
[1738186648952,0.16616877,104300.0,104290.0,0.24321628]
[1738186649382,0.02235377,104300.0,104290.0,0.24321628]
[1738186649601,0.28989659,104300.0,104290.0,0.09938728]
[1738186649846,0.28989659,104300.0,104290.0,0.00214412]
[1738186650077,0.36889659,104300.0,104290.0,0.00214412]
[1738186651189,0.24516877,104300.0,104290.0,0.00214412]
[1738186651405,0.24516877,104300.0,104290.0,0.09938728]
[1738186651615,0.16616877,104300.0,104290.0,0.09938728]
[1738186652260,0.16616877,104300.0,104290.0,0.24321628]
[1738186652491,0.16616877,104300.0,104290.0,0.09938728]
[1738186652713,0.28989659,104300.0,104290.0,0.00214412]
[1738186652919,0.37309659,104300.0,104290.0,0.00214412]
[1738186653507,0.52309659,104300.0,104290.0,0.00214412]
[1738186653768,0.57039659,104300.0,104290.0,0.00214412]
[1738186655741,0.72063975,104300.0,104290.0,0.00214412]
[1738186655949,0.72063975,104300.0,104290.0,1e-08]
[1738186658494,0.72063975,104300.0,104290.0,0.00025863]
[1738186658681,0.94043446,104300.0,104290.0,6.3e-07]
[1738186658937,0.191828,104260.0,104230.0,0.10157799]
[1738186659165,0.143898,104240.0,104230.0,0.10172222]
[1738186659392,0.143898,104240.0,104230.0,0.19896538]
[1738186659606,0.27254244,104240.0,104230.0,0.00044222]
[1738186659831,0.42254244,104240.0,104230.0,0.00044222]
[1738186661158,0.42354244,104240.0,104230.0,0.00044222]
[1738186662117,0.29981462,104240.0,104230.0,0.00044222]
[1738186662326,0.14981462,104240.0,104230.0,0.00044222]
[1738186662586,0.14981462,104240.0,104230.0,0.00144222]
[1738186663225,0.27354244,104240.0,104230.0,0.00144222]
[1738186663426,0.14981462,104240.0,104230.0,0.00144222]
[1738186663813,0.14981462,104240.0,104230.0,0.09868538]
[1738186664410,0.14981462,104240.0,104230.0,1.59868538]
[1738186665123,0.14981462,104240.0,104230.0,1.50144222]
[1738186665328,0.27450025,104240.0,104230.0,1.50144222]
[1738186665507,0.27354244,104240.0,104230.0,1.50144222]
[1738186665714,0.27354244,104240.0,104230.0,1.50044222]
[1738186666118,0.27554244,104240.0,104230.0,1.50044222]
[1738186667107,0.15181462,104240.0,104230.0,0.00044222]
[1738186667315,0.15081462,104240.0,104230.0,0.00044222]
[1738186667488,0.14881462,104240.0,104230.0,0.00044222]
[1738186667730,0.15681462,104240.0,104230.0,0.00044222]
[1738186668155,0.15281462,104240.0,104230.0,0.00044222]
[1738186668365,0.15981462,104240.0,104230.0,0.00044222]
[1738186669079,0.28354244,104240.0,104230.0,0.00044222]
[1738186669504,0.15981462,104240.0,104230.0,0.00044222]
[1738186670355,0.28450025,104240.0,104230.0,0.00044222]
[1738186670543,0.28354244,104240.0,104230.0,0.00044222]
[1738186670883,0.4615992,104240.0,104230.0,0.00044222]
[1738186671092,0.6115992,104240.0,104230.0,0.00044222]
[1738186671727,0.51424244,104240.0,104230.0,0.00044222]
[1738186673100,0.51234986,104240.0,104230.0,0.00044222]
[1738186673925,0.49679721,104240.0,104230.0,0.00044222]
[1738186675414,0.29236939,104240.0,104230.0,0.00044222]
[1738186675843,0.14236939,104240.0,104230.0,0.09768538]
[1738186676059,0.14236939,104240.0,104230.0,1.59768538]
[1738186676474,0.26609721,104240.0,104230.0,1.59768538]
[1738186676746,0.61415397,104240.0,104230.0,0.00044222]
[1738186676955,0.70648051,104240.0,104230.0,0.00044222]
[1738186677394,0.72948051,104240.0,104230.0,0.00044222]
[1738186679312,0.63212375,104240.0,104230.0,0.00044222]
[1738186681041,0.51188059,104240.0,104230.0,0.00044222]
[1738186682346,0.63212375,104240.0,104230.0,0.00044222]
[1738186682547,0.64212375,104240.0,104230.0,0.00044222]
[1738186682774,0.61212375,104240.0,104230.0,0.00044222]
[1738186683005,0.71948051,104240.0,104230.0,0.00044222]
[1738186684049,0.73855532,104240.0,104230.0,0.00044222]
[1738186684519,0.64119856,104240.0,104230.0,0.00044222]
[1738186687698,0.63119856,104240.0,104230.0,0.00044222]
[1738186690155,0.81362638,104240.0,104230.0,2.2e-07]
[1738186690402,0.67989856,104240.0,104230.0,2.2e-07]
[1738186690643,0.2802554,104240.0,104230.0,2.2e-07]
[1738186691105,0.42349929,104240.0,104230.0,2.2e-07]
[1738186691323,0.27349929,104240.0,104230.0,2.2e-07]
[1738186691529,0.40442448,104240.0,104230.0,2.2e-07]
[1738186692200,0.41342448,104240.0,104230.0,2.2e-07]
[1738186692377,0.40442448,104240.0,104230.0,2.2e-07]
[1738186692619,0.42242448,104240.0,104230.0,2.2e-07]
[1738186693279,0.41342448,104240.0,104230.0,2.2e-07]
[1738186693507,0.42142448,104240.0,104230.0,2.2e-07]
[1738186694145,0.42142448,104240.0,104230.0,0.00014242]
[1738186694355,0.4217231,104240.0,104230.0,0.00014242]
[1738186697571,0.29799528,104240.0,104230.0,0.09738558]
[1738186699623,0.14799528,104240.0,104230.0,0.09738558]
[1738186700484,0.14799528,104240.0,104230.0,0.17928558]
[1738186702118,0.14799528,104240.0,104230.0,0.32319758]
[1738186702368,0.14799528,104240.0,104230.0,0.17928558]
[1738186702619,0.14799528,104240.0,104230.0,0.32319758]
[1738186702854,0.16544051,104240.0,104230.0,0.32319758]
[1738186703089,0.02154251,104240.0,104230.0,0.32319758]
[1738186703580,0.01354251,104240.0,104230.0,0.32319758]
[1738186703819,0.16244051,104240.0,104230.0,0.32319758]
[1738186704266,0.15344051,104240.0,104230.0,0.32319758]
[1738186704729,0.16244051,104240.0,104230.0,0.32319758]
[1738186706372,0.01129862,104240.0,104230.0,0.32319758]
[1738186708470,0.01129862,104240.0,104230.0,1.82319758]
[1738186709114,0.15519662,104240.0,104230.0,0.24129758]
[1738186710174,0.15519662,104240.0,104230.0,0.09738558]
[1738186711967,0.01129862,104240.0,104230.0,0.24129758]
[1738186712846,0.01129862,104240.0,104230.0,1.74129758]
[1738186712980,0.01129862,104240.0,104230.0,2.1435254]
[1738186713205,0.01129862,104240.0,104230.0,0.6435254]
[1738186713428,0.01129862,104240.0,104230.0,0.67331558]
[1738186713827,0.00729862,104240.0,104230.0,2.1435254]
[1738186714673,0.00029862,104240.0,104230.0,2.1435254]
[1738186715090,0.00129862,104240.0,104230.0,2.1445254]
[1738186715373,0.00029862,104240.0,104230.0,2.1435254]
[1738186715796,0.00129862,104240.0,104230.0,2.1445254]
[1738186716267,0.00129862,104240.0,104230.0,2.02079758]
[1738186716493,0.00129862,104240.0,104230.0,0.52379758]
[1738186716930,0.00129862,104240.0,104230.0,0.52079758]
[1738186717360,0.00129862,104240.0,104230.0,0.52379758]
[1738186717782,0.00029862,104240.0,104230.0,0.51979758]
[1738186718226,0.00029862,104240.0,104230.0,0.52279758]
[1738186718420,0.00129862,104240.0,104230.0,0.52379758]
[1738186719064,0.00029862,104240.0,104230.0,0.52279758]
[1738186719497,0.00129862,104240.0,104230.0,0.52079758]
[1738186719737,0.00129862,104240.0,104230.0,0.6475254]
[1738186720016,0.00129862,104240.0,104230.0,2.1475254]
[1738186720220,0.00129862,104240.0,104230.0,0.6475254]
[1738186721496,0.00129862,104240.0,104230.0,2.1475254]
[1738186723686,0.00129862,104240.0,104230.0,2.17732708]
[1738186724337,0.00129862,104240.0,104230.0,2.18676872]
[1738186726221,0.00129862,104240.0,104230.0,2.15696704]
[1738186726692,0.00129862,104240.0,104230.0,2.18680194]
[1738186726900,0.00129862,104240.0,104230.0,2.15696704]
[1738186727117,0.00129862,104240.0,104230.0,2.18680201]
[1738186727328,0.00129862,104240.0,104230.0,2.15696704]
[1738186727545,0.00129862,104240.0,104230.0,2.18680522]
[1738186731830,0.00129862,104240.0,104230.0,1.80153922]
[1738186732041,0.00129862,104240.0,104230.0,0.10138558]
[1738186732249,0.00129862,104240.0,104230.0,0.24625685]
[1738186732464,0.00129862,104240.0,104230.0,2.0190254]
[1738186732666,0.00029862,104240.0,104230.0,2.04790205]
[1738186732873,0.00029862,104240.0,104230.0,2.17410205]
[1738186733084,0.00129862,104240.0,104230.0,2.17510205]
[1738186733299,0.00129862,104240.0,104230.0,2.17810205]
[1738186733504,0.00129862,104240.0,104230.0,0.67810205]
[1738186733708,0.00129862,104240.0,104230.0,0.69810205]
[1738186733925,0.00129862,104240.0,104230.0,2.19810205]
[1738186734555,0.00029862,104240.0,104230.0,2.20010205]
[1738186734961,0.00129862,104240.0,104230.0,2.20110205]
[1738186735172,0.00029862,104240.0,104230.0,2.20010205]
[1738186735589,0.00129862,104240.0,104230.0,2.20110205]
[1738186736113,0.00129862,104240.0,104230.0,2.53610205]
[1738186736355,0.00129862,104240.0,104230.0,2.53310205]
[1738186736570,0.00599104,104240.0,104230.0,2.54514205]
[1738186736758,0.00229862,104240.0,104230.0,2.54814205]
[1738186736999,0.00229862,104240.0,104230.0,2.56700579]
[1738186737182,0.00699687,104240.0,104230.0,2.56700579]
[1738186737398,0.00229862,104240.0,104230.0,2.56700579]
[1738186737619,0.00699802,104240.0,104230.0,2.55700579]
[1738186737837,0.00229862,104240.0,104230.0,2.54496579]
[1738186738056,0.00229862,104240.0,104230.0,2.52196579]
[1738186738057,0.00699802,104240.0,104230.0,2.52196579]
[1738186738272,0.00229862,104240.0,104230.0,2.10017423]
[1738186738490,0.00699567,104240.0,104230.0,2.10017423]
[1738186738702,0.00229862,104240.0,104230.0,2.25017423]
[1738186738919,0.00699567,104240.0,104230.0,2.25017423]
[1738186739055,0.00229862,104240.0,104230.0,1.92517423]
[1738186739278,0.0059918,104240.0,104230.0,0.42417423]
[1738186739485,0.00229862,104240.0,104230.0,0.42517423]
[1738186739683,0.08708999,104240.0,104230.0,1.980954]
[1738186739947,0.08608999,104240.0,104230.0,1.977954]
[1738186740413,0.08608999,104240.0,104230.0,1.830954]
[1738186740614,0.22998799,104240.0,104230.0,1.687042]
[1738186740813,0.22998799,104240.0,104230.0,1.830954]
[1738186741016,0.08608999,104240.0,104230.0,1.830954]
[1738186741391,0.00598999,104240.0,104230.0,1.830954]
[1738186742847,0.00598999,104240.0,104230.0,0.34890869]
[1738186743357,0.00598999,104240.0,104230.0,1.76325227]
[1738186745259,0.00598999,104240.0,104230.0,2.06688699]
[1738186745532,0.00598999,104240.0,104230.0,0.56688699]
[1738186745774,0.00598999,104240.0,104230.0,2.06688699]
[1738186746010,0.00598999,104240.0,104230.0,1.94315917]
[1738186747439,0.00598999,104240.0,104230.0,2.0489323]
[1738186748138,0.00598999,104240.0,104230.0,2.05846929]
[1738186748495,0.00598999,104240.0,104230.0,1.93474147]
[1738186749361,0.00598999,104240.0,104230.0,0.43474147]
[1738186749793,0.00598999,104240.0,104230.0,1.93474147]
[1738186750467,0.00598999,104240.0,104230.0,2.02039789]
[1738186751292,0.22948799,104240.0,104230.0,1.7169489]
[1738186751500,0.34878167,104240.0,104230.0,0.187042]
[1738186751718,0.39881581,104240.0,104230.0,0.08979884]
[1738186752322,0.87131581,104240.0,104230.0,0.08979884]
[1738186752523,0.87131581,104240.0,104230.0,0.08679884]
[1738186752729,0.87031581,104240.0,104230.0,0.08579884]
[1738186752946,0.96767257,104240.0,104230.0,0.08879884]
[1738186753170,0.96767257,104240.0,104230.0,0.00414242]
[1738186753171,1.09891573,104240.0,104230.0,0.00414242]
[1738186753375,1.11891573,104240.0,104230.0,0.00114242]
[1738186753795,1.12870242,104240.0,104230.0,0.00314242]
[1738186754469,1.12770242,104240.0,104230.0,0.00214242]
[1738186754677,1.12870242,104240.0,104230.0,0.00314242]
[1738186755331,0.9204676,104240.0,104230.0,0.00314242]
[1738186755574,0.8811025,104240.0,104230.0,0.00314242]
[1738186756215,0.9011025,104240.0,104230.0,0.00114242]
[1738186756426,0.71284566,104240.0,104230.0,0.00114242]
[1738186756646,0.81020242,104240.0,104230.0,0.00114242]
[1738186757278,0.70284566,104240.0,104230.0,0.00114242]
[1738186757503,0.70184566,104240.0,104230.0,0.00014242]
[1738186757709,0.5816025,104240.0,104230.0,0.00014242]
[1738186757911,0.5886025,104240.0,104230.0,0.00014242]
[1738186758147,0.68595926,104240.0,104230.0,0.00014242]
[1738186760714,0.5886025,104240.0,104230.0,0.00014242]
[1738186761136,0.71884566,104240.0,104230.0,0.00014242]
[1738186761986,0.70884566,104240.0,104230.0,0.00014242]
[1738186762207,0.5886025,104240.0,104230.0,0.00014242]
[1738186765063,0.6216025,104240.0,104230.0,0.00014242]
[1738186765274,0.81620242,104240.0,104230.0,0.00014242]
[1738186766151,0.79620242,104240.0,104230.0,0.00014242]
[1738186768276,0.90993024,104240.0,104230.0,4.2e-07]
[1738186768516,0.78620242,104240.0,104230.0,4.2e-07]
[1738186770010,0.90993024,104240.0,104230.0,4.2e-07]
[1738186770764,0.81257348,104240.0,104230.0,4.2e-07]
[1738186770894,0.68884566,104240.0,104230.0,4.2e-07]
[1738186771737,0.255012,104230.0,104220.0,0.0001725]
[1738186771945,0.47164443,104230.0,104220.0,0.0001725]
[1738186772142,0.60349361,104230.0,104220.0,0.0001725]
[1738186772350,0.74735037,104230.0,104220.0,0.0001725]
[1738186773703,0.74835037,104230.0,104220.0,0.0011725]
[1738186773911,0.74835037,104230.0,104220.0,0.0031725]
[1738186774637,0.74022901,104230.0,104220.0,5e-07]
[1738186774851,0.89022901,104230.0,104220.0,5e-07]
[1738186775277,0.89022901,104230.0,104220.0,0.0001427]
[1738186775481,0.89022901,104230.0,104220.0,0.0001422]
[1738186775856,0.89422901,104230.0,104220.0,0.0001422]
[1738186776065,0.91354638,104230.0,104220.0,0.0001422]
[1738186776271,0.90854638,104230.0,104220.0,0.0001422]
[1738186776601,0.92454638,104230.0,104220.0,0.0001422]
[1738186776719,0.91754638,104230.0,104220.0,0.0001422]
[1738186777127,0.92654638,104230.0,104220.0,0.0001422]
[1738186777346,0.82918962,104230.0,104220.0,0.0001422]
[1738186779823,0.83731098,104230.0,104220.0,0.0001422]
[1738186780355,0.82918962,104230.0,104220.0,0.0001422]
[1738186780770,0.82918962,104230.0,104220.0,2e-07]
[1738186781438,0.81431098,104230.0,104220.0,2e-07]
[1738186781667,0.92654638,104230.0,104220.0,2e-07]
[1738186783500,0.94654638,104230.0,104220.0,2e-07]
[1738186783705,0.92654638,104230.0,104220.0,2e-07]
[1738186784863,0.30672136,104220.0,104210.0,0.00025882]
[1738186785099,0.043,104190.0,104150.0,0.12759862]
[1738186785318,0.54146464,104160.0,104150.0,0.00029862]
[1738186785539,0.64156464,104160.0,104150.0,6.2e-07]
[1738186785743,0.02,104150.0,104130.0,0.00029841]
[1738186785971,0.43872163,104140.0,104130.0,0.00029841]
[1738186786184,0.54107821,104140.0,104130.0,0.00029841]
[1738186786431,0.78516279,104140.0,104130.0,0.00029841]
[1738186786651,0.97205633,104140.0,104130.0,0.00029841]
[1738186787073,0.97205633,104140.0,104130.0,0.00229841]
[1738186787280,1.09578415,104140.0,104130.0,0.00229841]
[1738186787514,1.10478415,104140.0,104130.0,0.00229841]
[1738186787946,0.98105633,104140.0,104130.0,0.00229841]
[1738186788564,0.98105633,104140.0,104130.0,0.00029841]
[1738186788786,0.99005633,104140.0,104130.0,0.00029841]
[1738186788989,1.01005633,104140.0,104130.0,0.00029841]
[1738186789774,0.99005633,104140.0,104130.0,0.00029841]
[1738186789981,1.11378415,104140.0,104130.0,0.00029841]
[1738186790166,1.13319841,104140.0,104130.0,0.00029841]
[1738186790609,1.00947059,104140.0,104130.0,0.00029841]
[1738186791358,1.01898381,104140.0,104130.0,0.00029841]
[1738186791565,0.69648381,104140.0,104130.0,0.00029841]
[1738186792090,0.82021163,104140.0,104130.0,0.00029841]
[1738186795914,0.82021163,104140.0,104130.0,1e-08]
[1738186796868,0.59100569,104140.0,104130.0,1e-08]
[1738186797083,0.71473351,104140.0,104130.0,1e-08]
[1738186797601,0.59100569,104140.0,104130.0,1e-08]
[1738186797837,0.71473351,104140.0,104130.0,1e-08]
[1738186798982,0.59100569,104140.0,104130.0,1e-08]
[1738186799212,0.67070751,104140.0,104130.0,1e-08]
[1738186799465,0.59100569,104140.0,104130.0,1e-08]
[1738186799702,0.71473351,104140.0,104130.0,1e-08]
[1738186799955,0.59100569,104140.0,104130.0,1e-08]
[1738186800670,0.47076253,104140.0,104130.0,1e-08]
[1738186801052,0.49076253,104140.0,104130.0,1e-08]
[1738186801264,0.51984402,104140.0,104130.0,1e-08]
[1738186801475,0.73473351,104140.0,104130.0,1e-08]
[1738186801679,0.73473351,104140.0,104120.0,0.0001423]
[1738186801680,0.41150564,104130.0,104120.0,0.0001423]
[1738186801886,0.5317488,104130.0,104120.0,0.0001423]
[1738186802090,0.53766178,104130.0,104120.0,0.0001423]
[1738186802329,0.54578314,104130.0,104120.0,0.0001423]
[1738186802545,0.7264766,104130.0,104120.0,3e-07]
[1738186802765,0.187078,104110.0,104100.0,0.0001423]
[1738186802974,0.294106,104090.0,104080.0,0.0155518]
[1738186803176,0.41783382,104090.0,104080.0,0.0155518]
[1738186803388,0.52080603,104090.0,104080.0,0.0155518]
[1738186803617,0.68753385,104090.0,104080.0,0.0155518]
[1738186803831,0.85181197,104090.0,104080.0,8e-07]
[1738186804058,0.85181197,104090.0,104080.0,0.00048145]
[1738186804274,0.64260603,104090.0,104080.0,0.00048145]
[1738186804486,0.54380603,104090.0,104080.0,0.00048145]
[1738186804695,0.57080603,104090.0,104080.0,0.00048145]
[1738186804904,0.54380603,104090.0,104080.0,0.00048145]
[1738186805131,0.56380603,104090.0,104080.0,0.00048145]
[1738186805352,0.43256287,104090.0,104080.0,0.00048145]
[1738186805559,0.42356287,104090.0,104080.0,0.00048145]
[1738186805764,0.43256287,104090.0,104080.0,0.00048145]
[1738186806197,0.44356287,104090.0,104080.0,0.00048145]
[1738186806409,0.42356287,104090.0,104080.0,0.00048145]
[1738186806626,0.43256287,104090.0,104080.0,0.00048145]
[1738186806841,0.29156287,104090.0,104080.0,0.00048145]
[1738186807084,0.02372905,104090.0,104060.0,0.09303309]
[1738186807291,0.02372905,104090.0,104040.0,0.12372782]
[1738186807292,0.02,104060.0,104020.0,0.0001423]
[1738186807547,0.369289,104030.0,104020.0,0.0001423]